[Event "Titled Tuesday Blitz February 21 Early 2023"]
[White "Danielyan, Vahe"]
[Black "Devaev, Alexander"]
[WhiteFideId "13304828"]
[BlackFideId "4169395"]
[WhiteElo "2346"]
[BlackElo "2325"]
[Result "1-0"]
[Round "07"]
[TimeControl "180+2"]
[Date "2023.02.21"]
[WhiteClock "0:01:32"]
[BlackClock "0:00:01"]

1. c4 {[%clk 0:03:00]}  c5 {[%clk 0:02:58]} 2. b3 {[%clk 0:02:58]}  Nf6 {[%clk 0:02:55]} 3. Bb2 {[%clk 0:02:58]}  e6 {[%clk 0:02:56]} 4. Nf3 {[%clk 0:02:58]}  Be7 {[%clk 0:02:57]} 5. e3 {[%clk 0:02:59]}  O-O {[%clk 0:02:57]} 6. Be2 {[%clk 0:02:59]}  b6 {[%clk 0:02:57]} 7. O-O {[%clk 0:02:59]}  Bb7 {[%clk 0:02:58]} 8. d4 {[%clk 0:03:00]}  cxd4 {[%clk 0:02:58]} 9. Nxd4 {[%clk 0:03:01]}  d6 {[%clk 0:02:47]} 10. Nc3 {[%clk 0:02:59]}  a6 {[%clk 0:02:47]} 11. Bf3 {[%clk 0:03:00]}  Qc7 {[%clk 0:02:44]} 12. Rc1 {[%clk 0:02:58]}  Nbd7 {[%clk 0:02:42]} 13. Bxb7 {[%clk 0:02:50]}  Qxb7 {[%clk 0:02:42]} 14. Qe2 {[%clk 0:02:51]}  Rac8 {[%clk 0:02:41]} 15. Rfd1 {[%clk 0:02:51]}  Rfe8 {[%clk 0:02:41]} 16. h3 {[%clk 0:02:50]}  h6 {[%clk 0:02:39]} 17. Rd2 {[%clk 0:02:49]}  Nc5 {[%clk 0:02:33]} 18. f3 {[%clk 0:02:47]}  Nh7 {[%clk 0:02:23]} 19. Rcd1 {[%clk 0:02:46]}  Nf6 {[%clk 0:02:18]} 20. e4 {[%clk 0:02:36]}  Nh5 {[%clk 0:02:09]} 21. Qf2 {[%clk 0:02:33]}  Bg5 {[%clk 0:01:51]} 22. Rc2 {[%clk 0:02:27]}  Qe7 {[%clk 0:01:51]} 23. Nce2 {[%clk 0:02:22]}  Nf4 {[%clk 0:01:20]} 24. Nxf4 {[%clk 0:02:20]}  Bxf4 {[%clk 0:01:20]} 25. Ne2 {[%clk 0:02:20]}  Be5 {[%clk 0:01:15]} 26. Bxe5 {[%clk 0:02:18]}  dxe5 {[%clk 0:01:15]} 27. Rcd2 {[%clk 0:02:19]}  Rc7 {[%clk 0:01:14]} 28. Nc3 {[%clk 0:02:18]}  Rec8 {[%clk 0:01:11]} 29. Qg3 {[%clk 0:02:16]}  Nd7 {[%clk 0:01:05]} 30. Kh2 {[%clk 0:02:10]}  g6 {[%clk 0:00:46]} 31. h4 {[%clk 0:02:07]}  h5 {[%clk 0:00:37]} 32. Rd6 {[%clk 0:02:07]}  Kg7 {[%clk 0:00:19]} 33. R1d3 {[%clk 0:01:58]}  Kg8 {[%clk 0:00:19]} 34. Rd2 {[%clk 0:01:53]}  Kg7 {[%clk 0:00:17]} 35. Qg5 {[%clk 0:01:54]}  Kf8 {[%clk 0:00:11]} 36. Qh6+ {[%clk 0:01:42]}  Kg8 {[%clk 0:00:11]} 37. g3 {[%clk 0:01:42]}  Nf8 {[%clk 0:00:01]} 38. Na4 {[%clk 0:01:39]}  b5 {[%clk 0:00:01]} 39. Nb6 {[%clk 0:01:39]}  Rb8 {[%clk 0:00:01]} 40. Qe3 {[%clk 0:01:32]} 1-0


[Site "https://www.chess.com"]

[Event "Titled Tuesday Blitz February 21 Early 2023"]
[White "Andrews, Todd"]
[Black "Fisher_TheGalactic"]
[WhiteFideId "2012456"]
[WhiteElo "2220"]
[BlackElo "2535"]
[Result "1-0"]
[Round "07"]
[TimeControl "180+2"]
[Date "2023.02.21"]
[WhiteClock "0:00:56"]
[BlackClock "0:00:04"]

1. e4 {[%clk 0:03:00]}  b6 {[%clk 0:02:58]} 2. d4 {[%clk 0:02:59]}  Bb7 {[%clk 0:02:58]} 3. Bd3 {[%clk 0:03:00]}  Nf6 {[%clk 0:02:58]} 4. Qe2 {[%clk 0:03:00]}  e6 {[%clk 0:02:57]} 5. Nf3 {[%clk 0:02:57]}  d5 {[%clk 0:02:56]} 6. e5 {[%clk 0:02:56]}  Nfd7 {[%clk 0:02:54]} 7. O-O {[%clk 0:02:54]}  c5 {[%clk 0:02:53]} 8. c3 {[%clk 0:02:54]}  Nc6 {[%clk 0:02:51]} 9. a3 {[%clk 0:02:51]}  h6 {[%clk 0:02:41]} 10. b4 {[%clk 0:02:47]}  c4 {[%clk 0:02:40]} 11. Bc2 {[%clk 0:02:47]}  Qc7 {[%clk 0:02:39]} 12. a4 {[%clk 0:02:41]}  Be7 {[%clk 0:02:34]} 13. b5 {[%clk 0:02:36]}  Na5 {[%clk 0:02:33]} 14. Ba3 {[%clk 0:02:36]}  Bxa3 {[%clk 0:02:33]} 15. Nxa3 {[%clk 0:02:37]}  O-O-O {[%clk 0:02:32]} 16. Nd2 {[%clk 0:02:35]}  Kb8 {[%clk 0:02:28]} 17. f4 {[%clk 0:02:34]}  g6 {[%clk 0:02:28]} 18. Bd1 {[%clk 0:02:20]}  h5 {[%clk 0:02:27]} 19. Qe3 {[%clk 0:02:18]}  Rc8 {[%clk 0:02:16]} 20. Nc2 {[%clk 0:02:07]}  Nb3 {[%clk 0:02:10]} 21. Rb1 {[%clk 0:02:01]}  Nxd2 {[%clk 0:02:07]} 22. Qxd2 {[%clk 0:02:02]}  f5 {[%clk 0:02:02]} 23. Nb4 {[%clk 0:01:58]}  Nf8 {[%clk 0:01:55]} 24. Bf3 {[%clk 0:01:53]}  Qe7 {[%clk 0:01:53]} 25. Rb2 {[%clk 0:01:45]}  Nh7 {[%clk 0:01:52]} 26. Ra1 {[%clk 0:01:38]}  g5 {[%clk 0:01:51]} 27. a5 {[%clk 0:01:34]}  gxf4 {[%clk 0:01:46]} 28. Na6+ {[%clk 0:01:19]}  Bxa6 {[%clk 0:01:36]} 29. bxa6 {[%clk 0:01:20]}  Rc6 {[%clk 0:01:36]} 30. axb6 {[%clk 0:01:17]}  axb6 {[%clk 0:01:32]} 31. a7+ {[%clk 0:01:15]}  Ka8 {[%clk 0:01:30]} 32. Bd1 {[%clk 0:01:09]}  Ng5 {[%clk 0:00:54]} 33. Ba4 {[%clk 0:01:06]}  Rc7 {[%clk 0:00:51]} 34. Rxb6 {[%clk 0:01:03]}  Rg8 {[%clk 0:00:48]} 35. Qb2 {[%clk 0:00:58]}  Rcc8 {[%clk 0:00:03]} 36. Bc6+ {[%clk 0:00:55]}  Rxc6 {[%clk 0:00:04]} 37. Rb8+ {[%clk 0:00:56]} 1-0


[Site "https://www.chess.com"]

[Event "Titled Tuesday Blitz February 21 Early 2023"]
[White "Martynov, Pavel"]
[Black "Spitzl, Vinzent"]
[WhiteFideId "4101260"]
[BlackFideId "12901253"]
[WhiteElo "2414"]
[BlackElo "2365"]
[Result "1-0"]
[Round "07"]
[TimeControl "180+2"]
[Date "2023.02.21"]
[WhiteClock "0:00:26"]
[BlackClock "0:00:31"]

1. e4 {[%clk 0:03:00]}  d5 {[%clk 0:02:58]} 2. exd5 {[%clk 0:02:54]}  Qxd5 {[%clk 0:02:59]} 3. Nc3 {[%clk 0:02:53]}  Qd8 {[%clk 0:02:59]} 4. d4 {[%clk 0:02:52]}  Nf6 {[%clk 0:02:59]} 5. Bc4 {[%clk 0:02:51]}  g6 {[%clk 0:03:00]} 6. Nf3 {[%clk 0:02:50]}  Bg7 {[%clk 0:03:00]} 7. O-O {[%clk 0:02:50]}  O-O {[%clk 0:02:59]} 8. h3 {[%clk 0:02:51]}  a6 {[%clk 0:03:00]} 9. a4 {[%clk 0:02:51]}  Nc6 {[%clk 0:02:59]} 10. Re1 {[%clk 0:02:45]}  b6 {[%clk 0:02:59]} 11. Bf4 {[%clk 0:02:20]}  Bb7 {[%clk 0:02:57]} 12. d5 {[%clk 0:02:16]}  Nb4 {[%clk 0:02:52]} 13. Qd2 {[%clk 0:01:32]}  Nbxd5 {[%clk 0:02:48]} 14. Rad1 {[%clk 0:01:29]}  Nxc3 {[%clk 0:02:29]} 15. Qxc3 {[%clk 0:01:28]}  Qc8 {[%clk 0:02:29]} 16. Qb3 {[%clk 0:01:17]}  c6 {[%clk 0:02:01]} 17. Qxb6 {[%clk 0:01:07]}  e6 {[%clk 0:01:54]} 18. Be5 {[%clk 0:00:48]}  c5 {[%clk 0:01:40]} 19. Bd6 {[%clk 0:00:41]}  Rd8 {[%clk 0:01:37]} 20. Qxc5 {[%clk 0:00:41]}  Qd7 {[%clk 0:01:27]} 21. Ne5 {[%clk 0:00:38]}  Qxa4 {[%clk 0:01:26]} 22. Nxf7 {[%clk 0:00:37]}  Rdc8 {[%clk 0:01:19]} 23. Bc7 {[%clk 0:00:27]}  Bd5 {[%clk 0:00:57]} 24. Bxd5 {[%clk 0:00:25]}  Nxd5 {[%clk 0:00:57]} 25. Rxd5 {[%clk 0:00:25]}  exd5 {[%clk 0:00:51]} 26. Qxd5 {[%clk 0:00:26]}  Rxc7 {[%clk 0:00:35]} 27. Nh6+ {[%clk 0:00:26]}  Kh8 {[%clk 0:00:31]} 28. Qxa8+ {[%clk 0:00:26]} 1-0


[Site "https://www.chess.com"]

[Event "Titled Tuesday Blitz February 21 Early 2023"]
[White "Martin Duque, Jesus"]
[Black "Babikov, Ivan"]
[WhiteFideId "2208954"]
[BlackFideId "4161106"]
[WhiteElo "2386"]
[BlackElo "2239"]
[Result "0-1"]
[Round "07"]
[TimeControl "180+2"]
[Date "2023.02.21"]
[WhiteClock "0:00:27"]
[BlackClock "0:01:24"]

1. Nf3 {[%clk 0:01:40]}  d5 {[%clk 0:02:58]} 2. b3 {[%clk 0:01:40]}  Nf6 {[%clk 0:02:55]} 3. Bb2 {[%clk 0:01:39]}  g6 {[%clk 0:02:56]} 4. c4 {[%clk 0:01:38]}  dxc4 {[%clk 0:02:53]} 5. bxc4 {[%clk 0:01:38]}  Bg7 {[%clk 0:02:54]} 6. g3 {[%clk 0:01:39]}  O-O {[%clk 0:02:54]} 7. Bg2 {[%clk 0:01:39]}  c6 {[%clk 0:02:55]} 8. O-O {[%clk 0:01:39]}  Bg4 {[%clk 0:02:55]} 9. d3 {[%clk 0:01:39]}  Nbd7 {[%clk 0:02:54]} 10. Nbd2 {[%clk 0:01:39]}  Qc7 {[%clk 0:02:52]} 11. Rb1 {[%clk 0:01:39]}  Rfe8 {[%clk 0:02:47]} 12. h3 {[%clk 0:01:38]}  Be6 {[%clk 0:02:46]} 13. Nd4 {[%clk 0:01:37]}  Nc5 {[%clk 0:02:42]} 14. Ba3 {[%clk 0:01:22]}  Nfd7 {[%clk 0:02:41]} 15. Nxe6 {[%clk 0:01:21]}  Nxe6 {[%clk 0:02:40]} 16. Ne4 {[%clk 0:01:20]}  Nf6 {[%clk 0:02:38]} 17. Nc5 {[%clk 0:01:16]}  Nxc5 {[%clk 0:02:35]} 18. Bxc5 {[%clk 0:01:16]}  Nd7 {[%clk 0:02:35]} 19. Ba3 {[%clk 0:01:13]}  Rab8 {[%clk 0:02:24]} 20. Qa4 {[%clk 0:00:42]}  a6 {[%clk 0:02:03]} 21. e3 {[%clk 0:00:41]}  Ne5 {[%clk 0:01:41]} 22. d4 {[%clk 0:00:41]}  b5 {[%clk 0:01:41]} 23. cxb5 {[%clk 0:00:38]}  axb5 {[%clk 0:01:39]} 24. Qc2 {[%clk 0:00:38]}  Nc4 {[%clk 0:01:35]} 25. Bc5 {[%clk 0:00:37]}  e5 {[%clk 0:01:30]} 26. Rfd1 {[%clk 0:00:27]}  exd4 {[%clk 0:01:28]} 27. Bxd4 {[%clk 0:00:27]}  Bxd4 {[%clk 0:01:24]} 0-1


[Site "https://www.chess.com"]

[Event "Titled Tuesday Blitz February 21 Early 2023"]
[White "Toncheva, Nadya"]
[Black "Kaganskiy, Gleb"]
[WhiteFideId "2924056"]
[BlackFideId "4132025"]
[WhiteElo "2295"]
[BlackElo "2205"]
[Result "1-0"]
[Round "07"]
[TimeControl "180+2"]
[Date "2023.02.21"]
[WhiteClock "0:00:24"]
[BlackClock "0:00:05"]

1. d4 {[%clk 0:03:00]}  Nf6 {[%clk 0:02:51]} 2. c4 {[%clk 0:03:01]}  e6 {[%clk 0:02:49]} 3. Nc3 {[%clk 0:03:01]}  d5 {[%clk 0:02:44]} 4. cxd5 {[%clk 0:03:01]}  Nxd5 {[%clk 0:02:40]} 5. Bd2 {[%clk 0:03:00]}  c5 {[%clk 0:02:33]} 6. e4 {[%clk 0:02:59]}  Nxc3 {[%clk 0:02:32]} 7. Bxc3 {[%clk 0:03:00]}  cxd4 {[%clk 0:02:29]} 8. Qxd4 {[%clk 0:02:59]}  Qxd4 {[%clk 0:02:29]} 9. Bxd4 {[%clk 0:03:00]}  Bb4+ {[%clk 0:02:29]} 10. Ke2 {[%clk 0:02:57]}  O-O {[%clk 0:02:24]} 11. f3 {[%clk 0:02:56]}  Nc6 {[%clk 0:02:20]} 12. Be3 {[%clk 0:02:56]}  Rd8 {[%clk 0:02:14]} 13. Kf2 {[%clk 0:02:55]}  e5 {[%clk 0:02:06]} 14. Bc4 {[%clk 0:02:42]}  Nd4 {[%clk 0:02:04]} 15. Rc1 {[%clk 0:02:40]}  Be6 {[%clk 0:01:58]} 16. Bxe6 {[%clk 0:02:38]}  Nxe6 {[%clk 0:01:56]} 17. Ne2 {[%clk 0:02:37]}  Bd2 {[%clk 0:01:54]} 18. Rc2 {[%clk 0:02:33]}  Bxe3+ {[%clk 0:01:51]} 19. Kxe3 {[%clk 0:02:34]}  f6 {[%clk 0:01:35]} 20. Rhc1 {[%clk 0:02:32]}  Kf7 {[%clk 0:01:33]} 21. g3 {[%clk 0:02:30]}  Ke7 {[%clk 0:01:29]} 22. f4 {[%clk 0:02:29]}  Nd4 {[%clk 0:01:19]} 23. Nxd4 {[%clk 0:02:27]}  Rxd4 {[%clk 0:01:18]} 24. Rc7+ {[%clk 0:02:24]}  Rd7 {[%clk 0:01:17]} 25. fxe5 {[%clk 0:02:14]}  fxe5 {[%clk 0:01:17]} 26. R1c5 {[%clk 0:02:14]}  Rd8 {[%clk 0:00:48]} 27. Rxd7+ {[%clk 0:02:09]}  Rxd7 {[%clk 0:00:46]} 28. Rxe5+ {[%clk 0:02:09]}  Kf6 {[%clk 0:00:45]} 29. Rc5 {[%clk 0:02:05]}  Ke6 {[%clk 0:00:42]} 30. Rc2 {[%clk 0:01:57]}  b6 {[%clk 0:00:41]} 31. h4 {[%clk 0:01:47]}  h5 {[%clk 0:00:41]} 32. Rf2 {[%clk 0:01:45]}  Rc7 {[%clk 0:00:39]} 33. Rd2 {[%clk 0:01:42]}  g6 {[%clk 0:00:37]} 34. Kf4 {[%clk 0:01:35]}  Rf7+ {[%clk 0:00:35]} 35. Kg5 {[%clk 0:01:27]}  Rf3 {[%clk 0:00:36]} 36. Kxg6 {[%clk 0:01:25]}  Rxg3+ {[%clk 0:00:34]} 37. Kxh5 {[%clk 0:01:25]}  Ke5 {[%clk 0:00:34]} 38. Re2 {[%clk 0:01:24]}  Rg8 {[%clk 0:00:27]} 39. Kh6 {[%clk 0:01:20]}  Rh8+ {[%clk 0:00:26]} 40. Kg5 {[%clk 0:01:20]}  Rg8+ {[%clk 0:00:26]} 41. Kh5 {[%clk 0:01:19]}  a5 {[%clk 0:00:25]} 42. a3 {[%clk 0:01:09]}  a4 {[%clk 0:00:24]} 43. Kh6 {[%clk 0:01:05]}  Rh8+ {[%clk 0:00:24]} 44. Kg5 {[%clk 0:01:05]}  Rg8+ {[%clk 0:00:24]} 45. Kh5 {[%clk 0:01:06]}  b5 {[%clk 0:00:24]} 46. Kh6 {[%clk 0:01:06]}  Rh8+ {[%clk 0:00:24]} 47. Kg5 {[%clk 0:01:07]}  Rg8+ {[%clk 0:00:25]} 48. Kh5 {[%clk 0:01:07]}  Ke6 {[%clk 0:00:14]} 49. e5 {[%clk 0:01:04]}  Kf5 {[%clk 0:00:14]} 50. Kh6 {[%clk 0:01:04]}  Ke6 {[%clk 0:00:11]} 51. h5 {[%clk 0:01:03]}  Rh8+ {[%clk 0:00:10]} 52. Kg6 {[%clk 0:00:59]}  Rg8+ {[%clk 0:00:10]} 53. Kh7 {[%clk 0:01:00]}  Rg5 {[%clk 0:00:10]} 54. h6 {[%clk 0:00:59]}  Rg4 {[%clk 0:00:10]} 55. Kh8 {[%clk 0:00:56]}  Rg5 {[%clk 0:00:10]} 56. h7 {[%clk 0:00:43]}  Rg4 {[%clk 0:00:11]} 57. Rc2 {[%clk 0:00:42]}  Kxe5 {[%clk 0:00:10]} 58. Rc5+ {[%clk 0:00:42]}  Kf6 {[%clk 0:00:11]} 59. Rxb5 {[%clk 0:00:42]}  Kf7 {[%clk 0:00:11]} 60. Rb7+ {[%clk 0:00:39]}  Kf8 {[%clk 0:00:10]} 61. Rb8+ {[%clk 0:00:36]}  Kf7 {[%clk 0:00:10]} 62. b3 {[%clk 0:00:31]}  axb3 {[%clk 0:00:10]} 63. Rxb3 {[%clk 0:00:32]}  Rg1 {[%clk 0:00:09]} 64. Rf3+ {[%clk 0:00:32]}  Ke7 {[%clk 0:00:09]} 65. a4 {[%clk 0:00:29]}  Rg5 {[%clk 0:00:08]} 66. Rf4 {[%clk 0:00:29]}  Ke8 {[%clk 0:00:08]} 67. Rf3 {[%clk 0:00:25]}  Ke7 {[%clk 0:00:08]} 68. Ra3 {[%clk 0:00:25]}  Ra5 {[%clk 0:00:05]} 69. Kg7 {[%clk 0:00:24]}  Rg5+ {[%clk 0:00:05]} 70. Kh6 {[%clk 0:00:25]}  Rg1 {[%clk 0:00:03]} 71. h8=Q {[%clk 0:00:23]}  Rh1+ {[%clk 0:00:04]} 72. Kg7 {[%clk 0:00:24]}  Rg1+ {[%clk 0:00:04]} 73. Kh7 {[%clk 0:00:23]}  Rh1+ {[%clk 0:00:05]} 74. Kg8 {[%clk 0:00:23]}  Rg1+ {[%clk 0:00:05]} 75. Qg7+ {[%clk 0:00:23]}  Rxg7+ {[%clk 0:00:05]} 76. Kxg7 {[%clk 0:00:24]} 1-0


[Site "https://www.chess.com"]

[Event "Titled Tuesday Blitz February 21 Early 2023"]
[White "Pinheiro, Iung Alicio de O."]
[Black "Miszler, Levente"]
[WhiteFideId "2104350"]
[BlackFideId "763276"]
[WhiteElo "2306"]
[BlackElo "2271"]
[Result "1-0"]
[Round "07"]
[TimeControl "180+2"]
[Date "2023.02.21"]
[WhiteClock "0:00:11"]
[BlackClock "0:00:01"]

1. e4 {[%clk 0:02:43]}  e6 {[%clk 0:02:58]} 2. d4 {[%clk 0:02:42]}  d5 {[%clk 0:02:58]} 3. e5 {[%clk 0:02:43]}  f6 {[%clk 0:02:57]} 4. Nf3 {[%clk 0:02:39]}  fxe5 {[%clk 0:02:54]} 5. Nxe5 {[%clk 0:02:37]}  Nf6 {[%clk 0:02:54]} 6. Bd3 {[%clk 0:02:35]}  Bd6 {[%clk 0:02:51]} 7. O-O {[%clk 0:02:33]}  O-O {[%clk 0:02:51]} 8. c4 {[%clk 0:02:32]}  c5 {[%clk 0:02:49]} 9. Be3 {[%clk 0:02:10]}  Nc6 {[%clk 0:02:39]} 10. Nxc6 {[%clk 0:02:06]}  bxc6 {[%clk 0:02:39]} 11. dxc5 {[%clk 0:01:40]}  Bc7 {[%clk 0:02:37]} 12. f4 {[%clk 0:01:27]}  d4 {[%clk 0:02:32]} 13. Bc1 {[%clk 0:01:07]}  e5 {[%clk 0:02:29]} 14. fxe5 {[%clk 0:01:02]}  Bxe5 {[%clk 0:02:30]} 15. h3 {[%clk 0:00:59]}  Qc7 {[%clk 0:02:04]} 16. Nd2 {[%clk 0:00:54]}  Bd7 {[%clk 0:01:59]} 17. Nf3 {[%clk 0:00:44]}  Rae8 {[%clk 0:01:54]} 18. Nxe5 {[%clk 0:00:36]}  Qxe5 {[%clk 0:01:55]} 19. Bf4 {[%clk 0:00:37]}  Qxc5 {[%clk 0:01:54]} 20. Qc2 {[%clk 0:00:36]}  Qh5 {[%clk 0:01:46]} 21. Rae1 {[%clk 0:00:34]}  Qh4 {[%clk 0:01:34]} 22. Rxe8 {[%clk 0:00:32]}  Rxe8 {[%clk 0:01:35]} 23. Qf2 {[%clk 0:00:32]}  Qxf2+ {[%clk 0:01:30]} 24. Kxf2 {[%clk 0:00:32]}  Ne4+ {[%clk 0:01:29]} 25. Kg1 {[%clk 0:00:32]}  Nc5 {[%clk 0:01:27]} 26. Rd1 {[%clk 0:00:27]}  Nxd3 {[%clk 0:01:18]} 27. Rxd3 {[%clk 0:00:26]}  c5 {[%clk 0:01:19]} 28. Bd6 {[%clk 0:00:25]}  Bf5 {[%clk 0:01:12]} 29. Rd2 {[%clk 0:00:25]}  Rc8 {[%clk 0:01:03]} 30. b4 {[%clk 0:00:25]}  cxb4 {[%clk 0:01:00]} 31. Rxd4 {[%clk 0:00:25]}  Bb1 {[%clk 0:00:54]} 32. c5 {[%clk 0:00:23]}  Bxa2 {[%clk 0:00:53]} 33. Rxb4 {[%clk 0:00:23]}  Bd5 {[%clk 0:00:49]} 34. Ra4 {[%clk 0:00:21]}  Re8 {[%clk 0:00:45]} 35. Rxa7 {[%clk 0:00:18]}  Re2 {[%clk 0:00:44]} 36. g4 {[%clk 0:00:16]}  Rg2+ {[%clk 0:00:40]} 37. Kf1 {[%clk 0:00:16]}  Rc2 {[%clk 0:00:40]} 38. h4 {[%clk 0:00:11]}  Rc4 {[%clk 0:00:30]} 39. g5 {[%clk 0:00:09]}  Rxh4 {[%clk 0:00:28]} 40. Be5 {[%clk 0:00:10]}  h6 {[%clk 0:00:16]} 41. Rxg7+ {[%clk 0:00:10]}  Kf8 {[%clk 0:00:17]} 42. g6 {[%clk 0:00:09]}  Rg4 {[%clk 0:00:16]} 43. Rd7 {[%clk 0:00:06]}  Bc4+ {[%clk 0:00:15]} 44. Kf2 {[%clk 0:00:06]}  Rxg6 {[%clk 0:00:15]} 45. Bd6+ {[%clk 0:00:06]}  Ke8 {[%clk 0:00:15]} 46. Re7+ {[%clk 0:00:07]}  Kd8 {[%clk 0:00:16]} 47. Rh7 {[%clk 0:00:04]}  Bb5 {[%clk 0:00:15]} 48. Ke3 {[%clk 0:00:04]}  Bc6 {[%clk 0:00:14]} 49. Kd4 {[%clk 0:00:05]}  Bf3 {[%clk 0:00:13]} 50. Ke5 {[%clk 0:00:06]}  h5 {[%clk 0:00:13]} 51. Bc7+ {[%clk 0:00:06]}  Kc8 {[%clk 0:00:13]} 52. Bd6 {[%clk 0:00:07]}  Rg1 {[%clk 0:00:10]} 53. Rc7+ {[%clk 0:00:08]}  Kd8 {[%clk 0:00:09]} 54. Rf7 {[%clk 0:00:09]}  Re1+ {[%clk 0:00:08]} 55. Kf4 {[%clk 0:00:07]}  Bc6 {[%clk 0:00:08]} 56. Rf8+ {[%clk 0:00:08]}  Kd7 {[%clk 0:00:09]} 57. Rf7+ {[%clk 0:00:08]}  Kd8 {[%clk 0:00:09]} 58. Rh7 {[%clk 0:00:09]}  Rh1 {[%clk 0:00:08]} 59. Kf5 {[%clk 0:00:09]}  Kc8 {[%clk 0:00:07]} 60. Ke6 {[%clk 0:00:09]}  Re1+ {[%clk 0:00:07]} 61. Be5 {[%clk 0:00:09]}  Bd7+ {[%clk 0:00:05]} 62. Kd6 {[%clk 0:00:08]}  Rd1+ {[%clk 0:00:05]} 63. Ke7 {[%clk 0:00:08]}  Bc6 {[%clk 0:00:04]} 64. Rh8+ {[%clk 0:00:08]}  Kb7 {[%clk 0:00:04]} 65. Rb8+ {[%clk 0:00:08]}  Ka7 {[%clk 0:00:05]} 66. Rb6 {[%clk 0:00:08]}  Bf3 {[%clk 0:00:03]} 67. Bb8+ {[%clk 0:00:08]}  Ka8 {[%clk 0:00:03]} 68. Bd6 {[%clk 0:00:09]}  h4 {[%clk 0:00:03]} 69. Kd7 {[%clk 0:00:10]}  h3 {[%clk 0:00:03]} 70. Kc7 {[%clk 0:00:10]}  Ra1 {[%clk 0:00:03]} 71. Rb8+ {[%clk 0:00:08]}  Ka7 {[%clk 0:00:03]} 72. Rh8 {[%clk 0:00:09]}  Bg2 {[%clk 0:00:02]} 73. Kd7 {[%clk 0:00:09]}  Rd1 {[%clk 0:00:02]} 74. c6 {[%clk 0:00:09]}  Rc1 {[%clk 0:00:01]} 75. c7 {[%clk 0:00:09]}  Kb7 {[%clk 0:00:01]} 76. Rb8+ {[%clk 0:00:09]}  Ka7 {[%clk 0:00:01]} 77. c8=Q {[%clk 0:00:10]}  Rxc8 {[%clk 0:00:02]} 78. Rxc8 {[%clk 0:00:10]}  Be4 {[%clk 0:00:01]} 79. Rc7+ {[%clk 0:00:10]}  Kb8 {[%clk 0:00:01]} 80. Bh2 {[%clk 0:00:11]} 1-0


[Site "https://www.chess.com"]

[Event "Titled Tuesday Blitz February 21 Early 2023"]
[White "Kubicka, Anna"]
[Black "Kalajzic, Ivan"]
[WhiteFideId "1152254"]
[BlackFideId "14506378"]
[WhiteElo "2240"]
[BlackElo "2062"]
[Result "1-0"]
[Round "07"]
[TimeControl "180+2"]
[Date "2023.02.21"]
[WhiteClock "0:00:12"]
[BlackClock "0:00:12"]

1. e4 {[%clk 0:03:00]}  Nc6 {[%clk 0:02:53]} 2. Nf3 {[%clk 0:02:59]}  d6 {[%clk 0:02:53]} 3. d4 {[%clk 0:02:55]}  Bg4 {[%clk 0:02:53]} 4. Be2 {[%clk 0:02:54]}  e5 {[%clk 0:02:53]} 5. dxe5 {[%clk 0:02:48]}  dxe5 {[%clk 0:02:53]} 6. Qxd8+ {[%clk 0:02:46]}  Rxd8 {[%clk 0:02:53]} 7. c3 {[%clk 0:02:42]}  Nf6 {[%clk 0:02:49]} 8. Bg5 {[%clk 0:02:40]}  Be7 {[%clk 0:02:49]} 9. Nbd2 {[%clk 0:02:37]}  h6 {[%clk 0:02:44]} 10. Be3 {[%clk 0:02:37]}  a6 {[%clk 0:02:41]} 11. h3 {[%clk 0:02:32]}  Be6 {[%clk 0:02:39]} 12. O-O {[%clk 0:02:27]}  Nd7 {[%clk 0:02:37]} 13. a4 {[%clk 0:02:09]}  Bc5 {[%clk 0:02:27]} 14. Bxc5 {[%clk 0:02:02]}  Nxc5 {[%clk 0:02:28]} 15. b4 {[%clk 0:02:03]}  Nd7 {[%clk 0:02:09]} 16. b5 {[%clk 0:01:59]}  axb5 {[%clk 0:02:07]} 17. axb5 {[%clk 0:01:58]}  Ne7 {[%clk 0:02:03]} 18. Ra7 {[%clk 0:01:52]}  Rb8 {[%clk 0:02:02]} 19. Bc4 {[%clk 0:01:46]}  Nc8 {[%clk 0:01:42]} 20. Ra2 {[%clk 0:01:37]}  Bxc4 {[%clk 0:01:36]} 21. Nxc4 {[%clk 0:01:37]}  f6 {[%clk 0:01:37]} 22. Ne3 {[%clk 0:01:10]}  Ne7 {[%clk 0:01:25]} 23. Nh4 {[%clk 0:01:03]}  Nc5 {[%clk 0:01:21]} 24. f3 {[%clk 0:01:02]}  Kf7 {[%clk 0:01:16]} 25. Rd1 {[%clk 0:00:59]}  Rhd8 {[%clk 0:01:16]} 26. Rad2 {[%clk 0:00:55]}  Rxd2 {[%clk 0:01:08]} 27. Rxd2 {[%clk 0:00:56]}  g6 {[%clk 0:01:09]} 28. g3 {[%clk 0:00:27]}  Ke8 {[%clk 0:01:06]} 29. Kf2 {[%clk 0:00:20]}  Rd8 {[%clk 0:01:06]} 30. Rxd8+ {[%clk 0:00:19]}  Kxd8 {[%clk 0:01:07]} 31. Nd5 {[%clk 0:00:20]}  Nxd5 {[%clk 0:01:06]} 32. exd5 {[%clk 0:00:21]}  g5 {[%clk 0:01:01]} 33. Nf5 {[%clk 0:00:21]}  Kd7 {[%clk 0:00:57]} 34. Nxh6 {[%clk 0:00:21]}  Kd6 {[%clk 0:00:57]} 35. Ng8 {[%clk 0:00:21]}  Nd7 {[%clk 0:00:57]} 36. c4 {[%clk 0:00:21]}  Kc5 {[%clk 0:00:56]} 37. h4 {[%clk 0:00:20]}  Kxc4 {[%clk 0:00:55]} 38. h5 {[%clk 0:00:20]}  Kxd5 {[%clk 0:00:53]} 39. h6 {[%clk 0:00:20]}  Nf8 {[%clk 0:00:50]} 40. Nxf6+ {[%clk 0:00:20]}  Kc5 {[%clk 0:00:27]} 41. h7 {[%clk 0:00:21]}  Nxh7 {[%clk 0:00:27]} 42. Nxh7 {[%clk 0:00:22]}  Kxb5 {[%clk 0:00:27]} 43. Nxg5 {[%clk 0:00:22]}  Kc4 {[%clk 0:00:20]} 44. Ne4 {[%clk 0:00:22]}  Kd5 {[%clk 0:00:16]} 45. g4 {[%clk 0:00:19]}  c5 {[%clk 0:00:16]} 46. g5 {[%clk 0:00:18]}  c4 {[%clk 0:00:15]} 47. Ke3 {[%clk 0:00:16]}  b5 {[%clk 0:00:14]} 48. g6 {[%clk 0:00:15]}  Ke6 {[%clk 0:00:14]} 49. Nd6 {[%clk 0:00:14]}  b4 {[%clk 0:00:09]} 50. Nxc4 {[%clk 0:00:14]}  b3 {[%clk 0:00:09]} 51. Nb2 {[%clk 0:00:13]}  Kf6 {[%clk 0:00:09]} 52. Ke4 {[%clk 0:00:14]}  Kxg6 {[%clk 0:00:09]} 53. Kxe5 {[%clk 0:00:14]}  Kf7 {[%clk 0:00:08]} 54. Kf5 {[%clk 0:00:14]}  Ke7 {[%clk 0:00:09]} 55. Kg6 {[%clk 0:00:13]}  Kd6 {[%clk 0:00:10]} 56. f4 {[%clk 0:00:14]}  Kc5 {[%clk 0:00:10]} 57. f5 {[%clk 0:00:14]}  Kd4 {[%clk 0:00:11]} 58. f6 {[%clk 0:00:14]}  Kc3 {[%clk 0:00:12]} 59. Nd1+ {[%clk 0:00:13]}  Kd2 {[%clk 0:00:12]} 60. Nb2 {[%clk 0:00:12]}  Kc2 {[%clk 0:00:12]} 61. Na4 {[%clk 0:00:12]} 1-0


[Site "https://www.chess.com"]